bitfinex-derivatives/quotes_BNBF0:USTF0_20260221
["timestamp","ask_amount","ask_price","bid_price","bid_amount"]
[1771704006334,1.19188471,627.46,626.88,2.98212979]
[1771704012332,1.19188471,627.46,626.89,1.19512979]
[1771704013333,1.19188471,627.45,626.89,1.19512979]
[1771704014038,1.19188471,627.46,626.89,1.19512979]
[1771704014238,1.19188471,627.45,626.89,1.19512979]
[1771704016441,1.19188471,627.45,626.88,1.787]
[1771704016442,1.19188471,627.45,626.9,1.19512979]
[1771704034252,1.19188471,627.44,626.9,1.19512979]
[1771704037356,1.19188471,627.44,626.91,1.19512979]
[1771704040357,1.19188471,627.43,626.91,1.19512979]
[1771704060180,1.19188471,627.43,626.92,1.601]
[1771704060480,1.19188471,627.38,626.92,1.601]
[1771704061476,1.19188471,627.39,626.92,1.601]
[1771704063382,1.19188471,627.4,626.92,1.601]
[1771704068386,1.19188471,627.41,626.92,1.601]
[1771704069687,1.19188471,627.36,626.92,1.601]
[1771704071392,1.19188471,627.37,626.92,1.601]
[1771704074488,1.19188471,627.38,626.92,1.601]
[1771704074992,1.19188471,627.35,626.92,1.601]
[1771704075392,1.19188471,627.36,626.92,1.601]
[1771704075893,1.19188471,627.34,626.92,1.601]
[1771704076293,1.19188471,627.35,626.92,1.601]
[1771704076490,1.19188471,627.34,626.92,1.601]
[1771704078396,1.19188471,627.35,626.92,1.601]
[1771704080292,1.19188471,627.33,626.92,1.601]
[1771704081296,1.19188471,627.34,626.92,1.601]
[1771704084199,1.19188471,627.34,626.66,1.19512979]
[1771704084399,1.19188471,627.35,626.66,1.19512979]
[1771704086396,1.19188471,627.35,626.65,1.19512979]
[1771704087198,1.19188471,627.35,626.66,1.17]
[1771704094703,1.19188471,627.33,626.66,1.17]
[1771704096907,1.1883966,627.33,626.66,1.17]
[1771704097807,1.1883966,627.31,626.66,1.17]
[1771704098209,1.1883966,627.3,626.66,1.17]
[1771704098409,1.1883966,627.31,626.66,1.17]
[1771704099207,1.1883966,627.3,626.66,1.17]
[1771704100810,1.1883966,627.29,626.66,1.17]
[1771704103210,1.1883966,627.28,626.66,1.17]
[1771704103512,1.1883966,627.29,626.66,1.17]
[1771704104212,1.1883966,627.28,626.66,1.17]
[1771704107008,0.27747877,627.55,626.66,1.17]
[1771704107009,1.1883966,627.27,626.66,1.17]
[1771704107212,1.1883966,627.2,626.66,1.17]
[1771704109409,1.1883966,627.21,626.66,1.17]
[1771704111709,1.1883966,627.19,626.66,1.17]
[1771704112215,1.1883966,627.18,626.66,1.17]
[1771704117213,1.1883966,627.17,626.66,1.17]
[1771704122217,1.1883966,627.18,626.66,1.17]
[1771704122420,1.1883966,627.17,626.66,1.17]
[1771704123115,1.1883966,627.18,626.66,1.17]
[1771704124020,1.1883966,627.26,626.66,1.17]
[1771704124516,1.1883966,627.31,626.66,1.17]
[1771704124716,1.1883966,627.36,626.66,2.36284925]
[1771704124918,1.1883966,627.37,626.67,1.19284925]
[1771704125318,1.1883966,627.39,626.69,1.19284925]
[1771704125615,1.1883966,627.42,626.72,1.19284925]
[1771704125820,1.1883966,627.46,626.76,1.19284925]
[1771704126319,1.1883966,627.46,626.75,1.19284925]
[1771704126817,0.27747877,627.55,626.66,1.17]
[1771704127017,1.1891598,627.46,626.75,1.19230877]
[1771704127221,1.1891598,627.47,626.75,1.19230877]
[1771704128221,1.1891598,627.47,626.74,1.19230877]
[1771704129223,1.1891598,627.48,626.74,1.19230877]
[1771704130221,1.1891598,627.48,626.73,1.19230877]
[1771704132217,1.1891598,627.49,626.74,1.557]
[1771704134421,1.1891598,627.5,626.74,1.557]
[1771704136722,1.58570216,627.61,626.74,1.557]
[1771704137022,1.1875646,627.5,626.74,1.557]
[1771704138216,1.1875646,627.51,626.74,1.557]
[1771704142517,1.1875646,627.52,626.74,1.557]
[1771704147332,1.1875646,627.53,626.74,1.557]
[1771704148135,1.1875646,627.52,626.74,1.557]
[1771704148329,1.1875646,627.53,626.74,1.557]
[1771704154339,1.1875646,627.52,626.74,1.557]
[1771704158239,1.1875646,627.51,626.74,1.557]
[1771704160242,1.1875646,627.5,626.74,1.557]
[1771704161444,1.1875646,627.49,626.74,1.557]
[1771704162342,1.1875646,627.48,626.74,1.557]
[1771704163346,1.1875646,627.47,626.74,2.74754596]
[1771704164342,1.1875646,627.46,626.75,1.19054596]
[1771704166351,1.1875646,627.45,626.76,1.19054596]
[1771704167147,1.1875646,627.43,626.78,1.19054596]
[1771704168152,1.1875646,627.41,626.81,1.19054596]
[1771704169249,1.1875646,627.38,626.83,1.19054596]
[1771704170250,1.1875646,627.37,626.85,1.19054596]
[1771704171357,1.1875646,627.38,626.86,1.19054596]
[1771704181857,1.1875646,627.38,626.87,1.137]
[1771704192966,2.37952443,627.63,626.87,1.137]
[1771704192967,1.1875646,627.43,626.91,1.19054596]
[1771704193271,1.1875646,627.47,626.92,1.19054596]
[1771704194269,1.1875646,627.47,626.87,1.137]
[1771704194270,1.1875646,627.47,626.91,1.19054596]
[1771704195168,1.1875646,627.48,626.91,1.19054596]
[1771704197267,1.1875646,627.48,626.9,1.19054596]
[1771704198173,1.1875646,627.49,626.9,1.19054596]
[1771704201273,1.1875646,627.49,626.89,1.19054596]
[1771704201569,1.1875646,627.49,626.9,1.19054596]
[1771704202272,1.1875646,627.49,626.89,1.19054596]
[1771704202672,1.1875646,627.5,626.89,1.19054596]
[1771704215576,1.1875646,627.5,626.9,1.235]
[1771704228196,1.1875646,627.49,626.9,2.42554596]
[1771704233200,1.1875646,627.48,626.91,1.19054596]
[1771704234701,1.1875646,627.54,626.97,1.19054596]
[1771704235201,1.1875646,627.55,626.97,1.19054596]
[1771704235401,1.1875646,627.54,626.98,1.19054596]
[1771704239200,1.1875646,627.55,626.97,1.19054596]
[1771704245305,1.1875646,627.55,626.96,1.19054596]
[1771704247310,1.1875646,627.56,626.96,1.19054596]
[1771704257716,1.1875646,627.54,626.94,1.19054596]
[1771704260515,1.1875646,627.52,626.92,1.19054596]
[1771704261313,1.1875646,627.51,626.91,1.19054596]
[1771704268327,1.1875646,627.51,626.92,1.19054596]
[1771704268722,1.1875646,627.51,626.93,1.543]
[1771704275223,1.1875646,627.5,626.93,1.543]
[1771704280733,1.1875646,627.49,626.93,1.543]
[1771704281231,1.1875646,627.45,626.93,1.543]
[1771704281933,1.1875646,627.45,626.86,1.19054596]
[1771704284229,1.1875646,627.45,626.85,1.19054596]
[1771704284530,1.1875646,627.46,626.86,1.19054596]
[1771704285036,1.1875646,627.46,626.87,1.775]
[1771704285736,1.1875646,627.45,626.87,1.775]
[1771704287033,1.19063241,627.45,626.87,1.775]
[1771704288237,1.19063241,627.46,626.87,1.775]
[1771704299646,1.19063241,627.44,626.87,1.775]
[1771704301542,1.19063241,627.43,626.87,1.775]
[1771704306451,1.19063241,627.42,626.87,1.775]
[1771704308052,1.19063241,627.42,626.8,1.19464903]
[1771704310954,1.19063241,627.42,626.81,1.164]
[1771704312552,1.19063241,627.43,626.81,2.35864903]
[1771704314352,1.19063241,627.41,626.81,1.164]
[1771704317958,1.19063241,627.39,626.81,1.164]
[1771704322263,1.19063241,627.38,626.81,1.164]
[1771704325266,1.19063241,627.37,626.81,1.164]
[1771704331970,1.19063241,627.36,626.81,1.164]
[1771704339573,1.19063241,627.34,626.81,1.164]
[1771704341373,1.19063241,627.33,626.81,1.164]
[1771704342173,1.19063241,627.26,626.81,1.164]
[1771704342375,1.19063241,627.27,626.81,1.164]
[1771704343276,1.19063241,627.28,626.81,1.164]
[1771704343677,1.19063241,627.27,626.81,1.164]
[1771704344377,1.19063241,627.28,626.81,1.164]
[1771704346276,1.19063241,627.29,626.81,1.164]
[1771704346878,1.19063241,627.26,626.81,1.164]
[1771704347177,1.19063241,627.16,626.81,1.164]
[1771704347380,1.19063241,627.12,626.81,1.164]
[1771704348082,1.19063241,627.11,626.81,1.164]
[1771704348281,1.19063241,627.07,626.81,1.164]
[1771704348782,1.19063241,627.06,626.81,1.164]
[1771704348981,1.19063241,627.05,626.81,1.164]
[1771704349281,1.19063241,627.08,626.81,1.164]
[1771704350178,1.19063241,627.09,626.81,1.164]
[1771704351284,1.19063241,627.11,626.81,1.164]
[1771704352282,1.19063241,627.12,626.81,1.164]
[1771704352490,1.19063241,627.13,626.81,1.164]
[1771704352988,1.19063241,627.13,626.39,0.2775828]
[1771704353285,2.37952443,627.35,626.39,0.2775828]
[1771704353286,1.19063241,627.14,626.39,0.2775828]
[1771704354286,1.19063241,627.15,626.39,0.2775828]
[1771704356190,1.19063241,627.16,626.39,0.2775828]
[1771704356591,1.19063241,627.16,626.4,1.535]
[1771704357190,1.19063241,627.17,626.4,1.535]
[1771704360700,1.19063241,627.2,626.4,1.535]
[1771704360898,1.19063241,627.24,626.4,1.535]
[1771704364004,1.19063241,627.26,626.4,1.535]
[1771704364302,1.18288644,627.25,626.4,1.535]
[1771704365407,1.18288644,627.27,626.4,1.535]
[1771704366409,1.18288644,627.31,626.4,1.535]
[1771704367310,1.18288644,627.3,626.4,1.535]
[1771704371410,1.18288644,627.29,626.4,1.535]
[1771704372207,1.18288644,627.29,626.4,2.72293173]
[1771704372612,1.18288644,627.31,626.41,1.18793173]
[1771704373309,1.18288644,627.3,626.42,1.18793173]
[1771704374410,1.18288644,627.29,626.4,1.535]
[1771704376216,1.18288644,627.28,626.4,1.535]
[1771704377417,1.18463425,627.28,626.4,1.535]
[1771704379218,1.18463425,627.27,626.4,1.535]
[1771704380420,1.18463425,627.26,626.4,1.535]
[1771704382221,1.18463425,627.25,626.4,1.535]
[1771704384220,1.18463425,627.24,626.4,1.535]
[1771704385324,2.37952443,627.46,626.4,1.535]
[1771704385325,1.18463425,627.23,626.4,1.535]
[1771704386426,1.18463425,627.22,626.4,1.535]
[1771704388124,1.18463425,627.21,626.4,1.535]
[1771704390228,1.18463425,627.21,626.4,3.12551751]
[1771704391326,1.18463425,627.2,626.4,3.12551751]
[1771704394229,1.18463425,627.2,626.41,1.59051751]
[1771704397229,1.18463425,627.19,626.42,1.59051751]
[1771704400231,1.18463425,627.18,626.43,1.59051751]
[1771704402135,1.18463425,627.18,626.4,1.535]
[1771704402136,1.18463425,627.17,626.44,1.59051751]
[1771704403236,1.18463425,627.16,626.45,1.59051751]
[1771704404640,1.18463425,627.16,626.57,1.19568787]
[1771704406141,1.18463425,627.16,626.58,1.19568787]
[1771704407237,1.18463425,627.15,626.58,1.19568787]
[1771704408241,1.18463425,627.15,626.59,1.19568787]
[1771704409338,1.18463425,627.14,626.59,1.19568787]
[1771704411343,1.18463425,627.13,626.6,1.19568787]
[1771704420745,1.18463425,627.08,626.53,1.19568787]
[1771704420949,1.18463425,627.06,626.53,1.19568787]
[1771704421346,1.18463425,627.06,626.5,1.543]
[1771704421347,1.18463425,627.07,626.52,1.19568787]
[1771704422247,1.18463425,627.06,626.51,1.19568787]
[1771704422446,1.18463425,627.07,626.51,1.19568787]
[1771704423348,1.18463425,627.08,626.5,2.73868787]
[1771704425353,1.18463425,627.08,626.5,1.543]
[1771704425954,1.18463425,627.07,626.5,1.543]
[1771704427254,1.18463425,627.08,626.5,1.543]
[1771704431354,1.18463425,627.09,626.5,1.543]
[1771704434654,1.18463425,627.11,626.5,1.543]
[1771704436256,1.18463425,627.09,626.5,1.543]
[1771704440366,1.18463425,627.1,626.5,1.543]
[1771704440967,1.18463425,627.01,626.5,1.543]
[1771704441166,1.18463425,627.0,626.5,1.543]
[1771704441370,1.18463425,627.01,626.5,1.543]
[1771704443372,1.18463425,627.02,626.5,1.543]
[1771704445576,1.18463425,627.03,626.5,1.543]
[1771704449474,1.18463425,627.04,626.5,1.543]
[1771704449774,1.18463425,627.03,626.5,1.543]
[1771704450477,1.18463425,627.04,626.5,1.543]
[1771704451179,1.18463425,627.03,626.5,1.543]
[1771704451479,1.18463425,627.04,626.5,1.543]
[1771704452380,1.18463425,626.99,626.5,1.543]
[1771704463286,1.18463425,626.98,626.5,1.543]
[1771704464182,1.18463425,626.99,626.5,1.543]
[1771704464387,1.18463425,627.02,626.5,1.543]
[1771704464585,1.18463425,627.03,626.5,1.543]
[1771704465289,1.18463425,627.06,626.5,1.543]
[1771704465488,1.18463425,627.11,626.5,1.543]
[1771704465786,1.18463425,627.22,626.51,1.19568787]
[1771704466388,1.18463425,627.22,626.5,2.73868787]
[1771704468391,1.18463425,627.23,626.5,2.73868787]
[1771704468589,1.18463425,627.22,626.5,2.73868787]
[1771704469389,1.18463425,627.22,626.5,1.543]
[1771704470290,1.18463425,627.22,626.49,1.19568787]
[1771704471394,1.18463425,627.23,626.49,1.19568787]
[1771704473893,1.18463425,627.23,626.5,1.239]
[1771704474295,1.18463425,627.24,626.5,1.239]
[1771704477499,1.18463425,627.25,626.5,1.239]
[1771704477695,1.18463425,627.31,626.55,1.19568787]
[1771704478298,1.18463425,627.31,626.5,1.239]
[1771704478299,1.18463425,627.33,626.56,1.19568787]
[1771704478797,1.18463425,627.34,626.56,1.19568787]
[1771704480504,1.18463425,627.34,626.55,1.19568787]
[1771704481005,1.18463425,627.35,626.55,1.19568787]
[1771704482107,1.18463425,627.35,626.54,1.19568787]
[1771704483009,1.18463425,627.37,626.56,1.19568787]
[1771704483205,1.18463425,627.37,626.55,1.19568787]
[1771704483410,1.18463425,627.38,626.56,1.19568787]
[1771704483607,1.18463425,627.4,626.58,1.19568787]
[1771704484106,1.18463425,627.4,626.57,1.19568787]
[1771704485106,1.18463425,627.41,626.56,1.19568787]
[1771704486108,1.18463425,627.43,626.58,1.19568787]
[1771704486406,1.18463425,627.44,626.59,1.19568787]
[1771704487109,1.18463425,627.45,626.58,1.19568787]
[1771704489106,1.18463425,627.46,626.57,1.19568787]
[1771704490907,1.18463425,627.46,626.58,1.771]
[1771704492212,1.18463425,627.48,626.58,2.96668787]
[1771704493113,0.27749315,627.58,626.58,2.96668787]
[1771704493114,1.18463425,627.49,626.59,1.19568787]
[1771704493310,1.18463425,627.54,626.63,1.19568787]
[1771704494610,1.18463425,627.55,626.63,1.19568787]
[1771704495514,0.27747324,627.65,626.64,1.19568787]
[1771704495515,1.18463425,627.56,626.64,1.19568787]
[1771704495811,1.18463425,627.57,626.65,1.19568787]
[1771704496113,1.18463425,627.58,626.64,1.19568787]
[1771704497310,1.18463425,627.6,626.67,1.19568787]
[1771704497613,1.18463425,627.61,626.68,1.19568787]
[1771704498110,1.18463425,627.63,626.69,1.19568787]
[1771704498611,1.18463425,627.65,626.71,1.19568787]
[1771704499210,1.18463425,627.65,626.7,1.19568787]
[1771704499414,0.27743563,627.74,626.58,1.771]
[1771704499415,1.18463425,627.62,626.68,1.19568787]
[1771704500111,1.18463425,627.63,626.68,1.19568787]
[1771704500310,1.18463425,627.62,626.68,1.19568787]
[1771704501214,1.18463425,627.63,626.68,1.19568787]
[1771704501411,1.18463425,627.6,626.66,1.19568787]
[1771704503418,1.18463425,627.59,626.67,1.19568787]
[1771704505416,1.18463425,627.58,626.68,1.19568787]
[1771704506518,1.18463425,627.57,626.69,1.19568787]
[1771704507415,1.18463425,627.56,626.7,1.19568787]
[1771704508521,0.27743563,627.74,626.71,1.19568787]
[1771704508522,1.18463425,627.55,626.71,1.19568787]
[1771704509520,1.18463425,627.54,626.72,1.19568787]
[1771704510323,1.18463425,627.54,626.58,1.771]
[1771704510324,1.18463425,627.53,626.73,1.19568787]
[1771704514329,1.18463425,627.52,626.74,1.19568787]
[1771704517328,1.18463425,627.51,626.75,1.19568787]
[1771704519032,1.18463425,627.51,626.76,1.79]
[1771704519327,1.18463425,627.5,626.76,2.98568787]
[1771704520428,1.18463425,627.5,626.77,1.19568787]
[1771704520827,1.18463425,627.49,626.76,2.98568787]
[1771704521333,1.18463425,627.48,626.76,2.98568787]
[1771704521533,1.18463425,627.48,626.77,1.19568787]
[1771704522434,1.18463425,627.47,626.78,1.19568787]
[1771704525133,1.18463425,627.47,626.79,1.19568787]
[1771704525537,1.18463425,627.46,626.78,1.19568787]
[1771704526037,1.18463425,627.45,626.78,1.19568787]
[1771704527139,1.18463425,627.45,626.79,1.19568787]
[1771704528137,1.18463425,627.42,626.77,1.19568787]
[1771704528642,1.18463425,627.4,626.76,1.79]
[1771704530140,1.58570216,627.51,626.76,1.79]
[1771704530141,1.18463425,627.39,626.76,2.98568787]
[1771704530841,1.18463425,627.38,626.76,1.79]
[1771704532142,1.18463425,627.37,626.76,1.79]
[1771704537246,1.18463425,627.36,626.76,1.79]
[1771704538043,1.18463425,627.36,626.76,2.98568787]
[1771704538548,1.18463425,627.31,626.76,1.79]
[1771704541351,1.18463425,627.32,626.76,1.79]
[1771704543955,1.18463425,627.27,626.76,1.79]
[1771704545357,1.18463425,627.28,626.76,1.79]
[1771704547463,1.18463425,627.29,626.76,1.79]
[1771704550267,1.18463425,627.3,626.76,1.79]
[1771704554666,1.18463425,627.29,626.76,1.79]
[1771704562075,1.18463425,627.29,626.58,1.19568787]
[1771704562773,1.18463425,627.26,626.55,1.19568787]
[1771704565076,1.18463425,627.25,626.55,1.19568787]
[1771704565376,1.18463425,627.26,626.55,1.19568787]
[1771704565681,1.18463425,627.25,626.54,1.19568787]
[1771704566378,1.58570216,627.36,626.55,1.644]
[1771704566379,1.18463425,627.24,626.55,1.644]
[1771704568082,1.18463425,627.24,626.55,2.83968787]
[1771704570280,1.18463425,627.23,626.55,2.83968787]
[1771704571283,1.18463425,627.23,626.56,1.19568787]
[1771704571480,1.18463425,627.23,626.55,2.83968787]
[1771704571885,1.18463425,627.23,626.56,1.19568787]
[1771704573689,1.18463425,627.22,626.55,2.83968787]
[1771704574182,1.18463425,627.22,626.56,1.19568787]
[1771704575290,1.18463425,627.21,626.56,1.19568787]
[1771704579087,1.18463425,627.2,626.57,1.19568787]
[1771704581191,1.18463425,627.2,626.58,1.19568787]
[1771704582092,1.18463425,627.19,626.58,1.19568787]
[1771704583188,1.18463425,627.18,626.59,1.19568787]
[1771704583390,1.18463425,627.19,626.59,1.19568787]
[1771704584288,1.18463425,627.18,626.59,1.19568787]
[1771704588292,1.18463425,627.17,626.6,1.19568787]
[1771704590997,1.18463425,627.13,626.55,2.83968787]
[1771704594401,1.18463425,627.13,626.55,1.644]
[1771704595397,1.18463425,627.14,626.55,1.644]
[1771704598807,1.18463425,627.12,626.55,1.644]
[1771704600704,1.18463425,627.13,626.55,1.644]
[1771704602212,0.27743563,627.74,626.55,1.644]
[1771704602213,1.18463425,627.23,626.63,1.19568787]
[1771704602414,1.18463425,627.25,626.65,1.19568787]
[1771704604713,1.18463425,627.27,626.66,1.19568787]
[1771704604910,1.18463425,627.26,626.66,1.19568787]
[1771704605312,1.18463425,627.27,626.66,1.19568787]
[1771704609319,1.18463425,627.28,626.65,1.19568787]
[1771704614423,1.18463425,627.28,626.64,1.19568787]
[1771704614719,1.18463425,627.29,626.65,1.19568787]
[1771704618324,1.18463425,627.3,626.65,1.19568787]
[1771704619129,1.18463425,627.3,626.66,1.466]
[1771704628734,1.18463425,627.33,626.67,1.19568787]
[1771704638339,1.18463425,627.33,626.68,1.19568787]
[1771704640243,1.18463425,627.32,626.68,1.19568787]
[1771704641346,1.18463425,627.32,626.69,1.19568787]
[1771704642348,1.18463425,627.31,626.69,1.19568787]
[1771704642943,1.18463425,627.31,626.7,1.789]
[1771704643347,1.18463425,627.31,626.7,2.98468787]
[1771704644445,1.18463425,627.3,626.71,1.19568787]
[1771704644850,1.18463425,627.3,626.7,1.789]
[1771704644851,1.18463425,627.31,626.72,1.19568787]
[1771704646250,1.18463425,627.29,626.73,1.19568787]
[1771704661359,1.18463425,627.29,626.74,1.19568787]
[1771704662258,1.18463425,627.31,626.75,1.19568787]
[1771704662459,1.18463425,627.33,626.77,1.19568787]
[1771704664660,1.18463425,627.36,626.8,1.19568787]
[1771704665256,1.18463425,627.37,626.8,1.19568787]
[1771704667156,1.18463425,627.37,626.79,1.19568787]
[1771704668257,1.18463425,627.38,626.79,1.19568787]
[1771704669661,1.18463425,627.38,626.8,1.651]
[1771704674766,1.18463425,627.39,626.8,1.651]
[1771704697298,1.18463425,627.38,626.8,1.651]
[1771704701298,1.18463425,627.38,626.8,2.84668787]
[1771704703304,1.18463425,627.37,626.8,2.84668787]
[1771704704403,1.18463425,627.37,626.81,1.19568787]
[1771704704801,2.37952443,627.6,626.8,1.651]
[1771704704802,1.18463425,627.35,626.8,1.651]
[1771704705203,1.18463425,627.34,626.8,1.651]
[1771704706806,1.18463425,627.36,626.8,2.84668787]
[1771704707204,1.18463425,627.35,626.81,1.19568787]
[1771704744534,1.19149509,627.35,626.81,1.19641323]
[1771704750234,1.19149509,627.34,626.81,1.19641323]
[1771704751236,1.19149509,627.34,626.82,1.19641323]
[1771704767843,1.19149509,627.34,626.83,1.503]
[1771704784361,1.19149509,627.37,626.85,1.19641323]
[1771704785063,1.19149509,627.38,626.86,1.19641323]
[1771704785263,1.19149509,627.39,626.85,1.19641323]
[1771704787261,1.19149509,627.39,626.84,1.19641323]
[1771704787963,1.19149509,627.41,626.87,1.19641323]
[1771704788266,1.19149509,627.48,626.91,1.19641323]
[1771704789267,1.19149509,627.49,626.9,1.19641323]
[1771704789471,1.19149509,627.5,626.92,1.19641323]
[1771704790370,1.19149509,627.51,626.91,1.19641323]
[1771704791071,1.19149509,627.51,626.92,1.846]
[1771704791371,1.19149509,627.52,626.92,1.846]
[1771704794273,1.19149509,627.53,626.92,1.846]
[1771704794973,1.19149509,627.54,626.92,1.846]
[1771704796271,1.19149509,627.55,626.92,1.846]
[1771704799587,1.19149509,627.56,626.92,1.846]
[1771704800385,1.19149509,627.55,626.92,1.846]
[1771704800584,1.19149509,627.53,626.92,1.846]
[1771704801385,1.19149509,627.48,626.92,1.846]
[1771704803285,1.19149509,627.47,626.92,1.846]
[1771704805795,1.19149509,627.46,626.92,1.846]
[1771704806793,1.19149509,627.45,626.92,1.846]
[1771704809299,1.19149509,627.43,626.92,1.846]
[1771704812100,1.19149509,627.43,626.76,1.19641323]
[1771704814302,1.19149509,627.42,626.76,1.19641323]
[1771704816202,1.19149509,627.42,626.77,1.535]
[1771704826114,1.19149509,627.41,626.77,1.535]
[1771704837132,1.19149509,627.38,626.77,1.535]
[1771704837333,1.19149509,627.34,626.77,1.535]
[1771704837529,1.19149509,627.29,626.77,1.535]
[1771704838129,1.19149509,627.28,626.77,1.535]
[1771704838330,1.19149509,627.29,626.77,1.535]
[1771704841225,1.19149509,627.25,626.77,1.535]
[1771704841727,1.19149509,627.23,626.77,1.535]
[1771704841935,0.27740357,627.77,626.77,1.535]
[1771704841936,1.19149509,627.22,626.77,1.535]
[1771704842235,1.19149509,627.23,626.77,1.535]
[1771704843235,1.19149509,627.22,626.77,1.535]
[1771704844236,1.19149509,627.23,626.77,1.535]
[1771704847248,1.19149509,627.24,626.77,1.535]
[1771704851146,1.19149509,627.23,626.77,1.535]
[1771704852346,1.19149509,627.24,626.77,1.535]
[1771704854046,1.19149509,627.24,626.46,1.47396171]
[1771704855145,1.19149509,627.23,626.46,0.27754848]
[1771704857246,1.19149509,627.24,626.46,0.27754848]
[1771704858150,1.19149509,627.24,626.47,1.165]
[1771704859750,1.19149509,627.15,626.47,1.165]
[1771704860250,1.19149509,627.16,626.47,1.165]
[1771704864254,1.19149509,627.17,626.47,1.165]
[1771704869250,1.19149509,627.16,626.47,1.165]
[1771704870157,1.19149509,627.17,626.47,1.165]
[1771704870355,1.19149509,627.16,626.47,1.165]
[1771704874258,1.19149509,627.15,626.46,0.27754848]
[1771704876358,1.19149509,627.14,626.46,0.27754848]
[1771704878061,1.19149509,627.14,626.47,1.43]
[1771704879261,1.19149509,627.13,626.47,1.43]
[1771704880161,1.19149509,627.14,626.47,1.43]
[1771704880361,1.19149509,627.18,626.47,2.62641323]
[1771704880560,1.19149509,627.2,626.49,1.19641323]
[1771704881264,1.19149509,627.19,626.51,1.19641323]
[1771704882362,1.19149509,627.18,626.52,1.19641323]
[1771704883267,1.19149509,627.17,626.52,1.19641323]
[1771704885165,1.19149509,627.18,626.53,1.19641323]
[1771704886266,1.19149509,627.18,626.54,1.19641323]
[1771704887668,1.19149509,627.18,626.55,1.19641323]
[1771704887873,1.19149509,627.19,626.55,1.19641323]
[1771704890372,1.19149509,627.22,626.58,1.19641323]
[1771704894279,1.19149509,627.22,626.57,1.19641323]
[1771704896380,1.19149509,627.23,626.57,1.19641323]
[1771704903286,1.19149509,627.23,626.56,1.19641323]
[1771704910202,1.19149509,627.23,626.57,1.19641323]
[1771704915202,1.19149509,627.21,626.56,1.19641323]
[1771704917309,1.19149509,627.21,626.57,1.19641323]
[1771704918313,1.19149509,627.2,626.57,1.19641323]
[1771704920416,1.19149509,627.2,626.58,1.19641323]
[1771704921317,1.19149509,627.19,626.58,1.19641323]
[1771704922316,1.19149509,627.19,626.59,1.19641323]
[1771704923313,1.19149509,627.18,626.59,1.19641323]
[1771704924419,1.19149509,627.17,626.6,1.19641323]
[1771704925415,1.19149509,627.17,626.61,1.19641323]
[1771704928321,1.19149509,627.16,626.61,1.19641323]
[1771704930122,1.19149509,627.16,626.62,1.252]
[1771704931218,1.19149509,627.16,626.62,2.44841323]
[1771704934222,1.19149509,627.15,626.62,2.44841323]
[1771704945235,1.19149509,627.15,626.63,1.19641323]
[1771704951041,1.19149509,627.15,626.64,1.651]
[1771704957144,1.19149509,627.14,626.64,1.651]
[1771704957447,1.19149509,627.15,626.64,1.651]
[1771704961253,1.19149509,627.19,626.66,1.19641323]
[1771704961450,1.19149509,627.27,626.74,1.19641323]
[1771704962247,1.19149509,627.29,626.72,1.19641323]
[1771704963147,1.19149509,627.29,626.64,1.651]
[1771704963148,1.19149509,627.3,626.74,1.19641323]
[1771704963352,1.19149509,627.31,626.73,1.19641323]
[1771704964353,1.19149509,627.32,626.72,1.19641323]
[1771704965453,1.19149509,627.33,626.71,1.19641323]
[1771704967261,1.19149509,627.34,626.7,1.19641323]
[1771704970560,1.19149509,627.35,626.69,1.19641323]
[1771704973060,1.19149509,627.34,626.67,1.19641323]
[1771704977364,1.19149509,627.35,626.67,1.19641323]
[1771704983964,1.19149509,627.35,626.68,1.161]
[1771704987768,1.19149509,627.36,626.69,1.19641323]
[1771704994278,1.19149509,627.35,626.69,1.19641323]
[1771704995277,1.19149509,627.35,626.7,1.19641323]
[1771704998480,1.19149509,627.34,626.7,1.19641323]
[1771704999376,1.19149509,627.34,626.71,1.19641323]
[1771705001381,1.19149509,627.33,626.71,1.19641323]
[1771705002283,1.19149509,627.33,626.72,1.19641323]
[1771705003487,1.19149509,627.32,626.73,1.19641323]
[1771705004482,1.19149509,627.31,626.74,1.19641323]
[1771705005283,1.19149509,627.31,626.73,1.19641323]
[1771705006185,1.19149509,627.29,626.75,1.19641323]
[1771705015006,1.19149509,627.32,626.78,1.19641323]
[1771705015200,1.19149509,627.46,626.92,1.19641323]
[1771705015406,1.19149509,627.48,626.9,1.19641323]
[1771705016301,1.19149509,627.49,626.88,1.19641323]
[1771705017301,1.19149509,627.5,626.87,1.19641323]